[Event "Titled Tuesday Blitz May 24 Late 2022"]
[White "Santos Ruiz, Miguel"]
[Black "Vivas Zamora, Fabian Ernesto"]
[WhiteFideId "22291482"]
[BlackFideId "3902480"]
[WhiteElo "2486"]
[BlackElo "1987"]
[Result "1-0"]
[Round "01"]
[TimeControl "180+1"]
[Date "2022.05.25"]
[WhiteClock "0:00:15"]
[BlackClock "0:00:01"]

1. e4 {[%clk 0:03:00]}  e5 {[%clk 0:02:59]} 2. Nf3 {[%clk 0:03:00]}  Nc6 {[%clk 0:02:59]} 3. Bc4 {[%clk 0:03:00]}  Nf6 {[%clk 0:02:59]} 4. d3 {[%clk 0:03:00]}  Bc5 {[%clk 0:02:59]} 5. Nc3 {[%clk 0:02:59]}  O-O {[%clk 0:02:57]} 6. Be3 {[%clk 0:02:50]}  d6 {[%clk 0:02:45]} 7. h3 {[%clk 0:02:24]}  Bb6 {[%clk 0:02:26]} 8. a4 {[%clk 0:02:16]}  Be6 {[%clk 0:02:23]} 9. Bxe6 {[%clk 0:02:08]}  fxe6 {[%clk 0:02:22]} 10. Bxb6 {[%clk 0:02:08]}  axb6 {[%clk 0:02:22]} 11. O-O {[%clk 0:02:01]}  Qe8 {[%clk 0:02:14]} 12. Nb5 {[%clk 0:01:52]}  Qd7 {[%clk 0:02:03]} 13. Re1 {[%clk 0:01:44]}  Ne7 {[%clk 0:01:52]} 14. g3 {[%clk 0:01:35]}  Ng6 {[%clk 0:01:43]} 15. Nh2 {[%clk 0:01:22]}  d5 {[%clk 0:01:38]} 16. Nc3 {[%clk 0:01:12]}  d4 {[%clk 0:01:30]} 17. Nb5 {[%clk 0:01:03]}  c6 {[%clk 0:01:28]} 18. Na3 {[%clk 0:01:03]}  Rxa4 {[%clk 0:01:27]} 19. Nf3 {[%clk 0:00:50]}  Rfa8 {[%clk 0:01:23]} 20. Kg2 {[%clk 0:00:45]}  b5 {[%clk 0:01:20]} 21. Rb1 {[%clk 0:00:45]}  Ne8 {[%clk 0:00:43]} 22. h4 {[%clk 0:00:38]}  h6 {[%clk 0:00:34]} 23. h5 {[%clk 0:00:37]}  Nf8 {[%clk 0:00:32]} 24. Nxe5 {[%clk 0:00:38]}  Qc7 {[%clk 0:00:30]} 25. f4 {[%clk 0:00:38]}  Nd6 {[%clk 0:00:26]} 26. Qg4 {[%clk 0:00:37]}  Qe7 {[%clk 0:00:18]} 27. Re2 {[%clk 0:00:34]}  Nd7 {[%clk 0:00:18]} 28. Ng6 {[%clk 0:00:31]}  Qf7 {[%clk 0:00:18]} 29. Rf1 {[%clk 0:00:27]}  b4 {[%clk 0:00:17]} 30. Nb1 {[%clk 0:00:27]}  Ra2 {[%clk 0:00:12]} 31. b3 {[%clk 0:00:21]}  Nb5 {[%clk 0:00:11]} 32. f5 {[%clk 0:00:18]}  e5 {[%clk 0:00:10]} 33. Qh4 {[%clk 0:00:18]}  Re8 {[%clk 0:00:10]} 34. Ref2 {[%clk 0:00:16]}  Nf6 {[%clk 0:00:10]} 35. Nd2 {[%clk 0:00:16]}  Rxc2 {[%clk 0:00:10]} 36. Nc4 {[%clk 0:00:16]}  Rxf2+ {[%clk 0:00:10]} 37. Rxf2 {[%clk 0:00:17]}  Kh7 {[%clk 0:00:08]} 38. Ncxe5 {[%clk 0:00:17]}  Qxb3 {[%clk 0:00:06]} 39. g4 {[%clk 0:00:14]}  Nd6 {[%clk 0:00:06]} 40. g5 {[%clk 0:00:14]}  hxg5 {[%clk 0:00:06]} 41. Qxg5 {[%clk 0:00:15]}  Qxd3 {[%clk 0:00:06]} 42. Nxd3 {[%clk 0:00:15]}  Ndxe4 {[%clk 0:00:06]} 43. Qh4 {[%clk 0:00:14]}  Nxf2 {[%clk 0:00:06]} 44. Nxf2 {[%clk 0:00:14]}  c5 {[%clk 0:00:05]} 45. h6 {[%clk 0:00:15]}  Nd5 {[%clk 0:00:02]} 46. hxg7+ {[%clk 0:00:15]}  Kxg7 {[%clk 0:00:03]} 47. Ng4 {[%clk 0:00:15]}  Re2+ {[%clk 0:00:01]} 48. Kf3 {[%clk 0:00:15]} 1-0


[Site "https://www.chess.com"]

[Event "Titled Tuesday Blitz May 24 Late 2022"]
[White "Sirosh, Ilja"]
[Black "Nakamura, Hikaru"]
[WhiteFideId "4500458"]
[BlackFideId "2016192"]
[WhiteElo "2241"]
[BlackElo "2850"]
[Result "0-1"]
[Round "01"]
[TimeControl "180+1"]
[Date "2022.05.24"]
[WhiteClock "0:00:05"]
[BlackClock "0:01:51"]

1. e4 {[%clk 0:03:00]}  Nf6 {[%clk 0:02:57]} 2. e5 {[%clk 0:03:00]}  Nd5 {[%clk 0:02:57]} 3. d4 {[%clk 0:03:00]}  d6 {[%clk 0:02:57]} 4. Nf3 {[%clk 0:03:00]}  g6 {[%clk 0:02:57]} 5. exd6 {[%clk 0:02:50]}  cxd6 {[%clk 0:02:54]} 6. Be2 {[%clk 0:02:46]}  Bg7 {[%clk 0:02:54]} 7. O-O {[%clk 0:02:46]}  O-O {[%clk 0:02:54]} 8. c4 {[%clk 0:02:42]}  Nb6 {[%clk 0:02:54]} 9. Nc3 {[%clk 0:02:37]}  Bg4 {[%clk 0:02:54]} 10. b3 {[%clk 0:02:36]}  Nc6 {[%clk 0:02:54]} 11. Be3 {[%clk 0:02:35]}  d5 {[%clk 0:02:55]} 12. c5 {[%clk 0:02:23]}  Nc8 {[%clk 0:02:53]} 13. h3 {[%clk 0:02:14]}  Bxf3 {[%clk 0:02:53]} 14. Bxf3 {[%clk 0:02:15]}  e6 {[%clk 0:02:54]} 15. Rb1 {[%clk 0:02:08]}  N8e7 {[%clk 0:02:49]} 16. b4 {[%clk 0:02:06]}  Nf5 {[%clk 0:02:49]} 17. Ne2 {[%clk 0:01:44]}  Nh4 {[%clk 0:02:48]} 18. b5 {[%clk 0:01:39]}  Nxf3+ {[%clk 0:02:48]} 19. gxf3 {[%clk 0:01:40]}  Ne7 {[%clk 0:02:43]} 20. Ng3 {[%clk 0:01:32]}  h5 {[%clk 0:02:42]} 21. Qd2 {[%clk 0:01:23]}  h4 {[%clk 0:02:41]} 22. Ne2 {[%clk 0:01:23]}  Nf5 {[%clk 0:02:41]} 23. Rfc1 {[%clk 0:01:13]}  Rc8 {[%clk 0:02:32]} 24. Bf4 {[%clk 0:01:09]}  Qd7 {[%clk 0:02:31]} 25. a4 {[%clk 0:00:59]}  f6 {[%clk 0:02:31]} 26. Kh1 {[%clk 0:00:43]}  e5 {[%clk 0:02:28]} 27. dxe5 {[%clk 0:00:43]}  fxe5 {[%clk 0:02:28]} 28. Bg5 {[%clk 0:00:44]}  Nd4 {[%clk 0:02:22]} 29. Ng1 {[%clk 0:00:33]}  Nxf3 {[%clk 0:02:22]} 30. Qe3 {[%clk 0:00:33]}  e4 {[%clk 0:02:15]} 31. Rd1 {[%clk 0:00:29]}  Nxg1 {[%clk 0:02:09]} 32. Kxg1 {[%clk 0:00:28]}  Qe6 {[%clk 0:02:07]} 33. Qd2 {[%clk 0:00:14]}  d4 {[%clk 0:02:06]} 34. Qc2 {[%clk 0:00:08]}  d3 {[%clk 0:01:57]} 35. Qb3 {[%clk 0:00:08]}  Qxb3 {[%clk 0:01:57]} 36. Rxb3 {[%clk 0:00:09]}  Bd4 {[%clk 0:01:57]} 37. Be3 {[%clk 0:00:09]}  Bxe3 {[%clk 0:01:58]} 38. fxe3 {[%clk 0:00:09]}  Rf3 {[%clk 0:01:58]} 39. Rc3 {[%clk 0:00:04]}  Rxe3 {[%clk 0:01:58]} 40. c6 {[%clk 0:00:05]}  bxc6 {[%clk 0:01:58]} 41. bxc6 {[%clk 0:00:05]}  Rxh3 {[%clk 0:01:53]} 42. c7 {[%clk 0:00:05]}  Rf3 {[%clk 0:01:53]} 43. Rb1 {[%clk 0:00:05]}  d2 {[%clk 0:01:51]} 0-1


[Site "https://www.chess.com"]

[Event "Titled Tuesday Blitz May 24 Late 2022"]
[White "Sokolovsky, Yahli"]
[Black "Bas Mas, Jose Joaquin"]
[WhiteFideId "2820242"]
[BlackFideId "22219064"]
[WhiteElo "1770"]
[BlackElo "2233"]
[Result "1-0"]
[Round "01"]
[TimeControl "180+1"]
[Date "2022.05.25"]
[WhiteClock "0:00:38"]
[BlackClock "0:00:59"]

1. b3 {[%clk 0:03:00]}  b6 {[%clk 0:02:58]} 2. Bb2 {[%clk 0:03:01]}  Bb7 {[%clk 0:02:59]} 3. e3 {[%clk 0:03:00]}  d6 {[%clk 0:02:59]} 4. d4 {[%clk 0:02:58]}  g6 {[%clk 0:02:57]} 5. d5 {[%clk 0:02:55]}  Nf6 {[%clk 0:02:57]} 6. c4 {[%clk 0:02:55]}  Bg7 {[%clk 0:02:56]} 7. Nf3 {[%clk 0:02:56]}  O-O {[%clk 0:02:54]} 8. Be2 {[%clk 0:02:54]}  a5 {[%clk 0:02:50]} 9. Nc3 {[%clk 0:02:47]}  Nbd7 {[%clk 0:02:46]} 10. O-O {[%clk 0:02:47]}  e5 {[%clk 0:02:46]} 11. Nd2 {[%clk 0:02:30]}  Nc5 {[%clk 0:02:40]} 12. Qc2 {[%clk 0:02:30]}  Qe7 {[%clk 0:02:32]} 13. a3 {[%clk 0:02:28]}  Nfd7 {[%clk 0:02:19]} 14. b4 {[%clk 0:02:26]}  axb4 {[%clk 0:02:13]} 15. axb4 {[%clk 0:02:26]}  Na6 {[%clk 0:02:13]} 16. Ra4 {[%clk 0:02:21]}  f5 {[%clk 0:02:00]} 17. e4 {[%clk 0:02:11]}  f4 {[%clk 0:01:58]} 18. Rfa1 {[%clk 0:02:02]}  h5 {[%clk 0:01:40]} 19. f3 {[%clk 0:01:39]}  Kh7 {[%clk 0:01:40]} 20. c5 {[%clk 0:01:30]}  bxc5 {[%clk 0:01:18]} 21. Bxa6 {[%clk 0:01:27]}  Bxa6 {[%clk 0:01:17]} 22. Rxa6 {[%clk 0:01:23]}  Rxa6 {[%clk 0:01:18]} 23. Rxa6 {[%clk 0:01:24]}  cxb4 {[%clk 0:01:19]} 24. Na4 {[%clk 0:01:15]}  g5 {[%clk 0:01:16]} 25. Qxc7 {[%clk 0:01:11]}  Rf7 {[%clk 0:01:16]} 26. Qxd6 {[%clk 0:00:57]}  Qe8 {[%clk 0:01:11]} 27. Qg6+ {[%clk 0:00:54]}  Kg8 {[%clk 0:01:11]} 28. Nc4 {[%clk 0:00:41]}  Nf8 {[%clk 0:01:04]} 29. Nd6 {[%clk 0:00:39]}  Nxg6 {[%clk 0:01:00]} 30. Nxe8 {[%clk 0:00:38]}  Nf8 {[%clk 0:00:59]} 31. Nxg7 {[%clk 0:00:38]} 1-0


[Site "https://www.chess.com"]

[Event "Titled Tuesday Blitz May 24 Late 2022"]
[White "Stojanovski, Sandi"]
[Black "Suder, Jakub"]
[WhiteFideId "1403249"]
[BlackFideId "1195310"]
[WhiteElo "2308"]
[BlackElo "2058"]
[Result "1/2-1/2"]
[Round "01"]
[TimeControl "180+1"]
[Date "2022.05.25"]
[WhiteClock "0:00:05"]
[BlackClock "0:00:08"]

1. d3 {[%clk 0:02:59]}  d5 {[%clk 0:02:57]} 2. Nf3 {[%clk 0:03:00]}  Nf6 {[%clk 0:02:56]} 3. g3 {[%clk 0:03:01]}  c5 {[%clk 0:02:54]} 4. Bg2 {[%clk 0:03:02]}  Nc6 {[%clk 0:02:54]} 5. O-O {[%clk 0:03:03]}  e6 {[%clk 0:02:54]} 6. c4 {[%clk 0:03:03]}  g6 {[%clk 0:02:50]} 7. Nc3 {[%clk 0:02:57]}  Bg7 {[%clk 0:02:50]} 8. Bf4 {[%clk 0:02:50]}  h6 {[%clk 0:02:49]} 9. Ne5 {[%clk 0:02:49]}  Nxe5 {[%clk 0:02:47]} 10. Bxe5 {[%clk 0:02:46]}  d4 {[%clk 0:02:47]} 11. Na4 {[%clk 0:02:36]}  Qe7 {[%clk 0:02:38]} 12. b4 {[%clk 0:02:13]}  cxb4 {[%clk 0:02:38]} 13. Bxd4 {[%clk 0:02:13]}  Bd7 {[%clk 0:02:32]} 14. Bxb7 {[%clk 0:02:00]}  Rb8 {[%clk 0:02:28]} 15. Bf3 {[%clk 0:01:59]}  a5 {[%clk 0:02:25]} 16. Nb6 {[%clk 0:01:48]}  e5 {[%clk 0:02:23]} 17. Nxd7 {[%clk 0:01:45]}  Nxd7 {[%clk 0:02:22]} 18. Bb2 {[%clk 0:01:41]}  O-O {[%clk 0:02:22]} 19. Qc2 {[%clk 0:01:35]}  Nc5 {[%clk 0:02:20]} 20. Bd5 {[%clk 0:01:30]}  Kh7 {[%clk 0:02:15]} 21. f4 {[%clk 0:01:29]}  f5 {[%clk 0:02:09]} 22. fxe5 {[%clk 0:01:26]}  a4 {[%clk 0:02:04]} 23. d4 {[%clk 0:01:20]}  a3 {[%clk 0:01:57]} 24. Bc1 {[%clk 0:01:13]}  b3 {[%clk 0:01:43]} 25. axb3 {[%clk 0:01:14]}  Nxb3 {[%clk 0:01:43]} 26. Bxa3 {[%clk 0:01:11]}  Qa7 {[%clk 0:01:42]} 27. Bxf8 {[%clk 0:00:35]}  Nxa1 {[%clk 0:01:32]} 28. Qd1 {[%clk 0:00:30]}  Nb3 {[%clk 0:01:13]} 29. Bxg7 {[%clk 0:00:28]}  Kxg7 {[%clk 0:01:08]} 30. e3 {[%clk 0:00:27]}  Qa2 {[%clk 0:00:58]} 31. Rf2 {[%clk 0:00:25]}  Qa3 {[%clk 0:00:56]} 32. Qd3 {[%clk 0:00:22]}  Qc1+ {[%clk 0:00:51]} 33. Rf1 {[%clk 0:00:21]}  Qb2 {[%clk 0:00:51]} 34. c5 {[%clk 0:00:17]}  Nd2 {[%clk 0:00:44]} 35. Rf2 {[%clk 0:00:16]}  Qc1+ {[%clk 0:00:41]} 36. Kg2 {[%clk 0:00:15]}  Nb1 {[%clk 0:00:21]} 37. g4 {[%clk 0:00:14]}  Nc3 {[%clk 0:00:18]} 38. gxf5 {[%clk 0:00:11]}  Rb1 {[%clk 0:00:15]} 39. fxg6 {[%clk 0:00:09]}  Qg1+ {[%clk 0:00:13]} 40. Kf3 {[%clk 0:00:08]}  Nxd5 {[%clk 0:00:09]} 41. Ke4 {[%clk 0:00:04]}  Qxf2 {[%clk 0:00:07]} 42. Kxd5 {[%clk 0:00:03]}  Qf3+ {[%clk 0:00:07]} 43. Qe4 {[%clk 0:00:03]}  Qxe4+ {[%clk 0:00:06]} 44. Kxe4 {[%clk 0:00:04]}  Rc1 {[%clk 0:00:07]} 45. Kd5 {[%clk 0:00:04]}  Kxg6 {[%clk 0:00:07]} 46. Kd6 {[%clk 0:00:03]}  Kf5 {[%clk 0:00:07]} 47. c6 {[%clk 0:00:03]}  Rc2 {[%clk 0:00:07]} 48. c7 {[%clk 0:00:03]}  Rxh2 {[%clk 0:00:03]} 49. e4+ {[%clk 0:00:04]}  Kxe4 {[%clk 0:00:03]} 50. c8=Q {[%clk 0:00:05]}  Rd2 {[%clk 0:00:03]} 51. Qe6 {[%clk 0:00:05]}  Rxd4+ {[%clk 0:00:04]} 52. Ke7 {[%clk 0:00:04]}  h5 {[%clk 0:00:05]} 53. Qg6+ {[%clk 0:00:02]}  Ke3 {[%clk 0:00:05]} 54. Qxh5 {[%clk 0:00:03]}  Rd5 {[%clk 0:00:06]} 55. Qg6 {[%clk 0:00:03]}  Rd4 {[%clk 0:00:06]} 56. Qe6 {[%clk 0:00:03]}  Re4 {[%clk 0:00:06]} 57. Kf6 {[%clk 0:00:04]}  Kd4 {[%clk 0:00:06]} 58. Ke7 {[%clk 0:00:04]}  Rxe5 {[%clk 0:00:07]} 59. Qxe5+ {[%clk 0:00:05]}  Kxe5 {[%clk 0:00:08]} 1/2-1/2


[Site "https://www.chess.com"]

[Event "Titled Tuesday Blitz May 24 Late 2022"]
[White "Svane, Rasmus"]
[Black "Stevens, Christian"]
[WhiteFideId "4657101"]
[BlackFideId "2604450"]
[WhiteElo "2674"]
[BlackElo "2525"]
[Result "0-1"]
[Round "01"]
[TimeControl "180+1"]
[Date "2022.05.24"]
[WhiteClock "0:00:03"]
[BlackClock "0:00:03"]

1. Nf3 {[%clk 0:03:00]}  Nf6 {[%clk 0:02:53]} 2. g3 {[%clk 0:03:00]}  d5 {[%clk 0:02:52]} 3. Bg2 {[%clk 0:03:01]}  c6 {[%clk 0:02:52]} 4. O-O {[%clk 0:03:01]}  Bg4 {[%clk 0:02:46]} 5. h3 {[%clk 0:03:01]}  Bxf3 {[%clk 0:02:42]} 6. Bxf3 {[%clk 0:03:02]}  Nbd7 {[%clk 0:02:38]} 7. d3 {[%clk 0:03:02]}  e5 {[%clk 0:02:34]} 8. e4 {[%clk 0:03:02]}  dxe4 {[%clk 0:02:33]} 9. dxe4 {[%clk 0:03:03]}  Be7 {[%clk 0:02:17]} 10. Nd2 {[%clk 0:03:04]}  Qc7 {[%clk 0:02:16]} 11. Qe2 {[%clk 0:03:04]}  O-O {[%clk 0:02:15]} 12. Nb3 {[%clk 0:03:05]}  a5 {[%clk 0:02:12]} 13. a4 {[%clk 0:03:05]}  Nc5 {[%clk 0:02:12]} 14. Nxc5 {[%clk 0:03:05]}  Bxc5 {[%clk 0:02:12]} 15. Kg2 {[%clk 0:03:06]}  h6 {[%clk 0:02:09]} 16. Bd2 {[%clk 0:03:06]}  Rfe8 {[%clk 0:02:04]} 17. Rfd1 {[%clk 0:03:06]}  Rad8 {[%clk 0:02:02]} 18. Be1 {[%clk 0:03:06]}  Qb6 {[%clk 0:01:57]} 19. c3 {[%clk 0:03:01]}  Qb3 {[%clk 0:01:54]} 20. Rd2 {[%clk 0:02:50]}  Rxd2 {[%clk 0:01:51]} 21. Qxd2 {[%clk 0:02:51]}  Qc4 {[%clk 0:01:36]} 22. Qc2 {[%clk 0:02:50]}  Rd8 {[%clk 0:01:34]} 23. b3 {[%clk 0:02:31]}  Qd3 {[%clk 0:01:31]} 24. Qxd3 {[%clk 0:02:31]}  Rxd3 {[%clk 0:01:31]} 25. Be2 {[%clk 0:02:32]}  Rd8 {[%clk 0:01:24]} 26. f3 {[%clk 0:02:32]}  Bb6 {[%clk 0:01:22]} 27. Rd1 {[%clk 0:02:32]}  Rxd1 {[%clk 0:01:20]} 28. Bxd1 {[%clk 0:02:33]}  Kf8 {[%clk 0:01:15]} 29. Bc2 {[%clk 0:02:32]}  Ke8 {[%clk 0:01:15]} 30. f4 {[%clk 0:02:33]}  Bc7 {[%clk 0:01:12]} 31. Kf3 {[%clk 0:02:32]}  Nd7 {[%clk 0:01:11]} 32. Bd2 {[%clk 0:02:29]}  Bb6 {[%clk 0:01:05]} 33. h4 {[%clk 0:02:22]}  Ke7 {[%clk 0:01:03]} 34. Bc1 {[%clk 0:02:17]}  Bc5 {[%clk 0:01:02]} 35. Bd3 {[%clk 0:02:12]}  Bd6 {[%clk 0:01:00]} 36. Be3 {[%clk 0:02:07]}  Nc5 {[%clk 0:00:51]} 37. Bc2 {[%clk 0:02:07]}  Ne6 {[%clk 0:00:48]} 38. f5 {[%clk 0:02:07]}  Nc5 {[%clk 0:00:43]} 39. g4 {[%clk 0:02:07]}  f6 {[%clk 0:00:41]} 40. g5 {[%clk 0:02:04]}  hxg5 {[%clk 0:00:40]} 41. hxg5 {[%clk 0:02:04]}  Kd7 {[%clk 0:00:40]} 42. g6 {[%clk 0:02:02]}  Kc7 {[%clk 0:00:36]} 43. Ke2 {[%clk 0:01:43]}  Bf8 {[%clk 0:00:35]} 44. Bd2 {[%clk 0:01:41]}  Na6 {[%clk 0:00:26]} 45. Kd3 {[%clk 0:01:30]}  b5 {[%clk 0:00:22]} 46. Be3 {[%clk 0:01:24]}  Bc5 {[%clk 0:00:17]} 47. Bc1 {[%clk 0:01:24]}  Bf8 {[%clk 0:00:17]} 48. Ke2 {[%clk 0:01:23]}  b4 {[%clk 0:00:15]} 49. Bd2 {[%clk 0:01:19]}  bxc3 {[%clk 0:00:14]} 50. Bxc3 {[%clk 0:01:20]}  Bb4 {[%clk 0:00:13]} 51. Bb2 {[%clk 0:01:21]}  Kd6 {[%clk 0:00:12]} 52. Bc1 {[%clk 0:01:21]}  Ke7 {[%clk 0:00:11]} 53. Kf3 {[%clk 0:01:18]}  Nc5 {[%clk 0:00:11]} 54. Be3 {[%clk 0:01:18]}  Nd7 {[%clk 0:00:11]} 55. Bd3 {[%clk 0:01:18]}  Nc5 {[%clk 0:00:11]} 56. Bc4 {[%clk 0:01:18]}  Nd7 {[%clk 0:00:11]} 57. Bh6 {[%clk 0:01:15]}  Kf8 {[%clk 0:00:10]} 58. Bc1 {[%clk 0:01:16]}  Nc5 {[%clk 0:00:10]} 59. Be3 {[%clk 0:01:16]}  Nd7 {[%clk 0:00:10]} 60. Bd3 {[%clk 0:01:00]}  Nc5 {[%clk 0:00:10]} 61. Bc2 {[%clk 0:01:00]}  Nd7 {[%clk 0:00:11]} 62. Ke2 {[%clk 0:01:01]}  Nc5 {[%clk 0:00:08]} 63. Bf2 {[%clk 0:01:01]}  Ke7 {[%clk 0:00:09]} 64. Be3 {[%clk 0:00:58]}  Kf8 {[%clk 0:00:09]} 65. Bc1 {[%clk 0:00:54]}  Ke7 {[%clk 0:00:08]} 66. Ke3 {[%clk 0:00:49]}  Kf8 {[%clk 0:00:07]} 67. Bd2 {[%clk 0:00:49]}  Bxd2+ {[%clk 0:00:06]} 68. Kxd2 {[%clk 0:00:50]}  Na6 {[%clk 0:00:04]} 69. Kc3 {[%clk 0:00:50]}  Nb4 {[%clk 0:00:04]} 70. Bd1 {[%clk 0:00:48]}  Ke7 {[%clk 0:00:04]} 71. Kc4 {[%clk 0:00:49]}  Kd6 {[%clk 0:00:04]} 72. Be2 {[%clk 0:00:46]}  Na2 {[%clk 0:00:04]} 73. Bd3 {[%clk 0:00:46]}  Nb4 {[%clk 0:00:03]} 74. Bb1 {[%clk 0:00:46]}  Na6 {[%clk 0:00:04]} 75. Bd3 {[%clk 0:00:42]}  Nb4 {[%clk 0:00:04]} 76. Be2 {[%clk 0:00:42]}  Na2 {[%clk 0:00:05]} 77. Kd3 {[%clk 0:00:38]}  Nb4+ {[%clk 0:00:05]} 78. Kc3 {[%clk 0:00:38]}  Na2+ {[%clk 0:00:05]} 79. Kc4 {[%clk 0:00:36]}  Nb4 {[%clk 0:00:06]} 80. Bd3 {[%clk 0:00:35]}  Na2 {[%clk 0:00:07]} 81. Bf1 {[%clk 0:00:30]}  Nb4 {[%clk 0:00:07]} 82. Kc3 {[%clk 0:00:30]}  Na2+ {[%clk 0:00:06]} 83. Kb2 {[%clk 0:00:30]}  Nb4 {[%clk 0:00:07]} 84. Bc4 {[%clk 0:00:31]}  Kc5 {[%clk 0:00:07]} 85. Kc3 {[%clk 0:00:31]}  Na2+ {[%clk 0:00:06]} 86. Kb2 {[%clk 0:00:32]}  Nb4 {[%clk 0:00:05]} 87. Kc3 {[%clk 0:00:31]}  Na2+ {[%clk 0:00:05]} 88. Kd3 {[%clk 0:00:28]}  Nb4+ {[%clk 0:00:05]} 89. Ke3 {[%clk 0:00:27]}  Na2 {[%clk 0:00:05]} 90. Be6 {[%clk 0:00:24]}  Kb4 {[%clk 0:00:05]} 91. Kd3 {[%clk 0:00:24]}  Nc1+ {[%clk 0:00:05]} 92. Kc2 {[%clk 0:00:25]}  Ne2 {[%clk 0:00:05]} 93. Kd3 {[%clk 0:00:25]}  Nd4 {[%clk 0:00:05]} 94. Bd7 {[%clk 0:00:19]}  Nxb3 {[%clk 0:00:05]} 95. Bxc6 {[%clk 0:00:19]}  Nc5+ {[%clk 0:00:06]} 96. Kc2 {[%clk 0:00:16]}  Nxa4 {[%clk 0:00:06]} 97. Bd5 {[%clk 0:00:10]}  Nc3 {[%clk 0:00:06]} 98. Bc6 {[%clk 0:00:11]}  a4 {[%clk 0:00:06]} 99. Kb2 {[%clk 0:00:10]}  a3+ {[%clk 0:00:06]} 100. Ka1 {[%clk 0:00:11]}  Kc4 {[%clk 0:00:06]} 101. Bb7 {[%clk 0:00:09]}  Kd4 {[%clk 0:00:06]} 102. Ba6 {[%clk 0:00:05]}  Nxe4 {[%clk 0:00:06]} 103. Ka2 {[%clk 0:00:06]}  Nd6 {[%clk 0:00:06]} 104. Kxa3 {[%clk 0:00:06]}  Nxf5 {[%clk 0:00:06]} 105. Kb2 {[%clk 0:00:06]}  Nh4 {[%clk 0:00:06]} 106. Kc2 {[%clk 0:00:07]}  Nxg6 {[%clk 0:00:06]} 107. Kd2 {[%clk 0:00:08]}  Nf4 {[%clk 0:00:06]} 108. Bc8 {[%clk 0:00:08]}  e4 {[%clk 0:00:06]} 109. Bf5 {[%clk 0:00:05]}  e3+ {[%clk 0:00:07]} 110. Ke1 {[%clk 0:00:06]}  g6 {[%clk 0:00:06]} 111. Bc2 {[%clk 0:00:07]}  f5 {[%clk 0:00:05]} 112. Bd1 {[%clk 0:00:06]}  Ke5 {[%clk 0:00:05]} 113. Bc2 {[%clk 0:00:03]}  g5 {[%clk 0:00:05]} 114. Ba4 {[%clk 0:00:02]}  g4 {[%clk 0:00:06]} 115. Bc6 {[%clk 0:00:03]}  Ng6 {[%clk 0:00:05]} 116. Ke2 {[%clk 0:00:03]}  Kf4 {[%clk 0:00:05]} 117. Bd7 {[%clk 0:00:03]}  Ne7 {[%clk 0:00:05]} 118. Be6 {[%clk 0:00:03]}  Ke5 {[%clk 0:00:05]} 119. Bd7 {[%clk 0:00:03]}  Nd5 {[%clk 0:00:05]} 120. Bc6 {[%clk 0:00:03]}  Ke4 {[%clk 0:00:04]} 121. Bb7 {[%clk 0:00:02]}  f4 {[%clk 0:00:03]} 122. Bc8 {[%clk 0:00:03]}  f3+ {[%clk 0:00:03]} 123. Ke1 {[%clk 0:00:03]}  Kf4 {[%clk 0:00:03]} 124. Bb7 {[%clk 0:00:03]}  Nf6 {[%clk 0:00:03]} 125. Bc8 {[%clk 0:00:03]}  Ne4 {[%clk 0:00:03]} 126. Bb7 {[%clk 0:00:03]}  g3 {[%clk 0:00:04]} 127. Kd1 {[%clk 0:00:03]}  g2 {[%clk 0:00:03]} 0-1


[Site "https://www.chess.com"]

[Event "Titled Tuesday Blitz May 24 Late 2022"]
[White "Tanenbaum, Zachary"]
[Black "Deviprasath, Sharvesh"]
[WhiteFideId "2060850"]
[BlackFideId "30938228"]
[WhiteElo "2168"]
[BlackElo "2102"]
[Result "0-1"]
[Round "01"]
[TimeControl "180+1"]
[Date "2022.05.25"]
[WhiteClock "0:00:02"]
[BlackClock "0:01:07"]

1. e4 {[%clk 0:02:59]}  c5 {[%clk 0:02:56]} 2. Nf3 {[%clk 0:02:59]}  d6 {[%clk 0:02:56]} 3. d4 {[%clk 0:03:00]}  cxd4 {[%clk 0:02:57]} 4. Nxd4 {[%clk 0:03:00]}  Nf6 {[%clk 0:02:58]} 5. Nc3 {[%clk 0:03:01]}  Nc6 {[%clk 0:02:57]} 6. Bg5 {[%clk 0:03:01]}  g6 {[%clk 0:02:57]} 7. Bxf6 {[%clk 0:02:58]}  exf6 {[%clk 0:02:58]} 8. Bc4 {[%clk 0:02:52]}  Bg7 {[%clk 0:02:58]} 9. O-O {[%clk 0:02:52]}  O-O {[%clk 0:02:56]} 10. Ndb5 {[%clk 0:02:45]}  f5 {[%clk 0:02:50]} 11. exf5 {[%clk 0:02:40]}  Bxf5 {[%clk 0:02:41]} 12. Nxd6 {[%clk 0:02:37]}  Bxc2 {[%clk 0:02:41]} 13. Nxf7 {[%clk 0:02:32]}  Qh4 {[%clk 0:02:33]} 14. Qd5 {[%clk 0:02:13]}  Ne7 {[%clk 0:02:27]} 15. Qe6 {[%clk 0:02:12]}  Bf5 {[%clk 0:02:25]} 16. Nh6+ {[%clk 0:01:52]}  Kh8 {[%clk 0:02:22]} 17. Nxf5 {[%clk 0:01:51]}  Nxf5 {[%clk 0:02:21]} 18. g3 {[%clk 0:01:42]}  Qh5 {[%clk 0:02:15]} 19. Be2 {[%clk 0:01:39]}  Qh6 {[%clk 0:02:13]} 20. Qd7 {[%clk 0:01:28]}  Rae8 {[%clk 0:02:08]} 21. Bc4 {[%clk 0:01:11]}  Nd4 {[%clk 0:02:07]} 22. Bd5 {[%clk 0:01:08]}  Rd8 {[%clk 0:01:59]} 23. Qxb7 {[%clk 0:00:37]}  Rxd5 {[%clk 0:01:58]} 24. Kg2 {[%clk 0:00:36]}  Rdd8 {[%clk 0:01:51]} 25. f4 {[%clk 0:00:34]}  Nc2 {[%clk 0:01:47]} 26. Qxa7 {[%clk 0:00:30]}  Nxa1 {[%clk 0:01:44]} 27. Qf2 {[%clk 0:00:28]}  Bxc3 {[%clk 0:01:38]} 28. bxc3 {[%clk 0:00:28]}  Qg7 {[%clk 0:01:39]} 29. Qb2 {[%clk 0:00:23]}  Rb8 {[%clk 0:01:34]} 30. Qxa1 {[%clk 0:00:23]}  Qb7+ {[%clk 0:01:34]} 31. Kg1 {[%clk 0:00:23]}  Qb2 {[%clk 0:01:32]} 32. Qe1 {[%clk 0:00:20]}  Rfe8 {[%clk 0:01:29]} 33. Qd1 {[%clk 0:00:18]}  Qxc3 {[%clk 0:01:27]} 34. a4 {[%clk 0:00:18]}  Rbd8 {[%clk 0:01:20]} 35. Qa1 {[%clk 0:00:15]}  Qxa1 {[%clk 0:01:20]} 36. Rxa1 {[%clk 0:00:16]}  Ra8 {[%clk 0:01:20]} 37. a5 {[%clk 0:00:15]}  Reb8 {[%clk 0:01:20]} 38. Kg2 {[%clk 0:00:15]}  Rb2+ {[%clk 0:01:20]} 39. Kh3 {[%clk 0:00:15]}  Rb5 {[%clk 0:01:21]} 40. Kg4 {[%clk 0:00:15]}  Rbxa5 {[%clk 0:01:21]} 41. Rd1 {[%clk 0:00:15]}  R8a7 {[%clk 0:01:21]} 42. h4 {[%clk 0:00:14]}  Kg7 {[%clk 0:01:22]} 43. Rd6 {[%clk 0:00:14]}  h5+ {[%clk 0:01:20]} 44. Kh3 {[%clk 0:00:14]}  Ra1 {[%clk 0:01:21]} 45. Rd5 {[%clk 0:00:12]}  R7a2 {[%clk 0:01:21]} 46. Rd7+ {[%clk 0:00:09]}  Kh6 {[%clk 0:01:22]} 47. g4 {[%clk 0:00:08]}  Ra3+ {[%clk 0:01:22]} 48. Kg2 {[%clk 0:00:08]}  hxg4 {[%clk 0:01:21]} 49. Rd5 {[%clk 0:00:07]}  R1a2+ {[%clk 0:01:21]} 50. Kh1 {[%clk 0:00:07]}  g3 {[%clk 0:01:21]} 51. Rd1 {[%clk 0:00:06]}  Rf3 {[%clk 0:01:19]} 52. Kg1 {[%clk 0:00:05]}  Rff2 {[%clk 0:01:19]} 53. f5 {[%clk 0:00:05]}  Rg2+ {[%clk 0:01:19]} 54. Kh1 {[%clk 0:00:05]}  Rh2+ {[%clk 0:01:20]} 55. Kg1 {[%clk 0:00:05]}  gxf5 {[%clk 0:01:19]} 56. h5 {[%clk 0:00:05]}  Rag2+ {[%clk 0:01:14]} 57. Kf1 {[%clk 0:00:05]}  Rh1+ {[%clk 0:01:15]} 58. Kxg2 {[%clk 0:00:05]}  Rxd1 {[%clk 0:01:16]} 59. Kh3 {[%clk 0:00:05]}  Kxh5 {[%clk 0:01:15]} 60. Kg2 {[%clk 0:00:04]}  Rd2+ {[%clk 0:01:13]} 61. Kh3 {[%clk 0:00:05]}  g2 {[%clk 0:01:11]} 62. Kh2 {[%clk 0:00:03]}  f4 {[%clk 0:01:08]} 63. Kh3 {[%clk 0:00:02]}  f3 {[%clk 0:01:07]} 64. Kh2 {[%clk 0:00:02]}  Kg4 {[%clk 0:01:06]} 65. Kg1 {[%clk 0:00:03]}  Rd1+ {[%clk 0:01:06]} 66. Kf2 {[%clk 0:00:02]}  g1=Q# {[%clk 0:01:07]} 0-1


[Site "https://www.chess.com"]